bitfinex/quotes_BTCUSD_20240831
["timestamp","ask_amount","ask_price","bid_price","bid_amount"]
[1725127838146,0.96236253,59245.0,59244.0,0.0925]
[1725127838372,0.96979259,59245.0,59244.0,0.0925]
[1725127839284,0.97079259,59245.0,59244.0,0.0985]
[1725127839725,0.96979259,59245.0,59244.0,0.0925]
[1725127839940,0.96979259,59245.0,59244.0,0.0935]
[1725127840155,0.96979259,59245.0,59244.0,0.0955]
[1725127840371,0.96979259,59245.0,59244.0,0.0935]
[1725127841294,0.96979259,59245.0,59244.0,0.0925]
[1725127841525,0.96979259,59245.0,59244.0,0.0995]
[1725127842408,0.99627448,59245.0,59244.0,0.0995]
[1725127843292,0.99627448,59245.0,59244.0,0.1015]
[1725127844399,0.99627448,59245.0,59244.0,0.0995]
[1725127846197,0.99627448,59245.0,59244.0,0.1995]
[1725127847516,0.99627448,59245.0,59244.0,0.2004009]
[1725127847729,0.96979259,59245.0,59244.0,0.2004009]
[1725127851629,0.96979259,59245.0,59244.0,0.1079009]
[1725127852536,0.99627491,59245.0,59244.0,0.1079009]
[1725127853864,1.33385591,59245.0,59244.0,0.1079009]
[1725127855272,1.33385591,59245.0,59244.0,0.2004009]
[1725127857727,1.30737359,59245.0,59244.0,0.2004009]
[1725127859018,1.30737359,59245.0,59244.0,0.1079009]
[1725127859893,1.53027359,59245.0,59244.0,0.1079009]
[1725127861008,1.55675766,59245.0,59244.0,0.1079009]
[1725127862591,1.89253866,59245.0,59244.0,0.1079009]
[1725127863719,2.0610903,59245.0,59244.0,0.1079009]
[1725127864389,2.0728903,59245.0,59244.0,0.1079009]
[1725127864813,2.0728903,59245.0,59241.0,0.0008998]
[1725127864814,0.005,59242.0,59241.0,0.0008998]
[1725127865031,0.63160753,59242.0,59241.0,0.0008998]
[1725127865243,1.44886049,59242.0,59241.0,0.0008998]
[1725127865453,1.88645849,59242.0,59241.0,0.0008998]
[1725127866556,1.89945849,59242.0,59241.0,0.0018998]
[1725127867035,1.91145849,59242.0,59241.0,0.0018998]
[1725127867719,1.92913542,59242.0,59241.0,0.0018998]
[1725127871881,0.22011262,59242.0,59241.0,0.2133998]
[1725127872109,0.03363669,59242.0,59241.0,0.3842018]
[1725127872315,0.06012084,59242.0,59241.0,0.2153998]
[1725127872530,0.05148415,59242.0,59241.0,0.3842018]
[1725127872750,0.06076045,59242.0,59241.0,0.3842018]
[1725127872970,0.04776045,59242.0,59241.0,0.2143998]
[1725127873194,0.05476045,59242.0,59241.0,0.2143998]
[1725127873423,0.04776045,59242.0,59241.0,0.2143998]
[1725127873639,0.03576045,59242.0,59241.0,0.2143998]
[1725127873855,0.04876045,59242.0,59241.0,0.2143998]
[1725127874069,0.04876045,59242.0,59241.0,0.3832018]
[1725127874299,0.04976045,59242.0,59241.0,0.3832018]
[1725127874979,0.04976045,59242.0,59241.0,0.7208058]
[1725127874980,0.03776045,59242.0,59241.0,0.7208058]
[1725127875184,0.1,59255.0,59254.0,0.2105]
[1725127875403,0.1,59255.0,59254.0,0.379264]
[1725127875641,0.1,59255.0,59254.0,0.716793]
[1725127875931,0.1,59255.0,59254.0,1.054322]
[1725127876141,0.1,59255.0,59254.0,0.716793]
[1725127876567,0.103,59255.0,59254.0,0.718793]
[1725127876785,0.1,59255.0,59254.0,0.718793]
[1725127876997,0.101,59255.0,59254.0,0.717793]
[1725127877224,0.1,59255.0,59254.0,0.717793]
[1725127877648,0.101,59255.0,59254.0,0.717793]
[1725127877862,0.102,59255.0,59254.0,1.055322]
[1725127878073,0.102,59255.0,59254.0,1.053322]
[1725127878279,0.102,59255.0,59254.0,1.055322]
[1725127878525,0.102,59255.0,59254.0,1.053322]
[1725127878729,0.102,59255.0,59254.0,1.055322]
[1725127880289,0.102,59255.0,59254.0,1.392851]
[1725127881915,0.102,59255.0,59254.0,1.055322]
[1725127883029,0.102,59255.0,59254.0,0.717793]
[1725127883470,0.10976312,59255.0,59254.0,0.717793]
[1725127883688,0.102,59255.0,59254.0,0.717793]
[1725127884124,0.102,59255.0,59254.0,0.2115]
[1725127884551,0.102,59255.0,59254.0,0.380264]
[1725127884763,0.10977089,59255.0,59254.0,0.380264]
[1725127885144,0.10877089,59255.0,59254.0,0.380264]
[1725127885350,0.10877089,59255.0,59254.0,0.7186928]
[1725127885550,0.10877089,59255.0,59254.0,0.3811638]
[1725127885551,0.10858889,59255.0,59254.0,0.3811638]
[1725127885926,0.10958889,59255.0,59254.0,0.3901638]
[1725127886356,0.11058889,59255.0,59254.0,0.3911638]
[1725127886771,0.11058889,59255.0,59254.0,0.7286928]
[1725127886991,0.10958889,59255.0,59254.0,0.7276928]
[1725127887213,0.11058889,59255.0,59254.0,0.7286928]
[1725127887428,0.11058889,59255.0,59254.0,0.3911638]
[1725127887644,0.11058889,59255.0,59254.0,0.7286928]
[1725127888780,0.102818,59255.0,59254.0,0.7286928]
[1725127889001,0.102818,59255.0,59254.0,1.0662218]
[1725127894962,0.102818,59255.0,59254.0,1.4037508]
[1725127895176,0.102818,59255.0,59254.0,1.0662218]
[1725127903077,0.102818,59255.0,59254.0,1.0652218]
[1725127903297,0.102818,59255.0,59254.0,1.0662218]
[1725127905000,0.102818,59255.0,59254.0,0.7286928]
[1725127906662,0.102818,59255.0,59254.0,0.2203998]
[1725127906870,0.102818,59255.0,59254.0,0.2223998]
[1725127908154,0.102818,59255.0,59254.0,0.2203998]
[1725127908376,0.27158,59255.0,59254.0,0.0981998]
[1725127908594,0.337523,59256.0,59254.0,0.0108998]
[1725127908799,0.168762,59255.0,59254.0,0.0108998]
[1725127909002,0.000818,59255.0,59254.0,0.0108998]
[1725127909633,0.16958,59255.0,59254.0,0.0098998]
[1725127909842,0.16958,59255.0,59254.0,0.0108998]
[1725127910060,0.507104,59255.0,59254.0,0.0108998]
[1725127910534,0.844628,59255.0,59254.0,0.0108998]
[1725127910977,0.87110473,59255.0,59254.0,0.0108998]
[1725127911194,0.87110473,59255.0,59254.0,0.0098998]
[1725127911407,0.87210473,59255.0,59254.0,0.0108998]
[1725127913839,0.845628,59255.0,59254.0,0.0108998]
[1725127915206,1.305152,59255.0,59254.0,0.0108998]
[1725127915703,1.183152,59255.0,59254.0,0.0108998]
[1725127917072,1.20962976,59255.0,59254.0,0.0108998]
[1725127917722,1.183152,59255.0,59254.0,0.0108998]
[1725127919265,1.283152,59255.0,59254.0,0.0108998]
[1725127920351,1.40166383,59255.0,59254.0,0.0108998]
[1725127920563,1.44626383,59255.0,59254.0,0.0108998]
[1725127920781,1.44626383,59255.0,59254.0,0.0018998]
[1725127921069,1.47174224,59255.0,59254.0,0.0008998]
[1725127921313,1.47374224,59255.0,59254.0,0.0068998]
[1725127922429,1.55276073,59255.0,59254.0,0.0068998]
[1725127923554,2.00498473,59255.0,59254.0,0.0068998]
[1725127924029,2.17353637,59255.0,59254.0,0.0068998]
[1725127924716,2.17853637,59255.0,59254.0,0.0068998]
[1725127925622,2.00998473,59255.0,59254.0,0.0068998]
[1725127926533,2.02666166,59255.0,59254.0,0.0018998]
[1725127926755,2.02666166,59255.0,59254.0,0.0028998]
[1725127927024,2.36418566,59255.0,59254.0,0.0018998]
[1725127927264,2.5317373,59255.0,59254.0,0.0008998]
[1725127927534,2.5427373,59255.0,59254.0,0.0028998]
[1725127927758,2.52125889,59255.0,59254.0,0.0018998]
[1725127927998,2.52625889,59255.0,59254.0,0.0008998]
[1725127928504,2.54025889,59255.0,59254.0,0.0008998]
[1725127928999,2.55425889,59255.0,59254.0,0.0008998]
[1725127929209,2.54325889,59255.0,59254.0,0.0008998]
[1725127929630,2.55725889,59255.0,59254.0,0.0008998]
[1725127930481,1.181593,59242.0,59241.0,0.0008998]
[1725127930693,1.13202632,59242.0,59241.0,0.0008998]
[1725127930904,1.15851298,59242.0,59241.0,0.0008998]
[1725127931148,1.66490998,59242.0,59241.0,0.0008998]
[1725127931565,1.66590998,59242.0,59241.0,0.0008998]
[1725127932825,1.50660998,59242.0,59241.0,0.0008998]
[1725127933906,2.01275962,59242.0,59241.0,0.0008998]
[1725127935092,1.84420798,59242.0,59241.0,0.0008998]
[1725127936206,1.88880798,59242.0,59241.0,0.0008998]
[1725127937312,0.005,59239.0,59234.0,0.0008998]
[1725127937557,1.04162532,59235.0,59234.0,0.0008998]
[1725127937776,1.81690132,59235.0,59234.0,0.0008998]
[1725127940000,1.89432033,59235.0,59234.0,0.0008998]
[1725127940275,1.83390132,59235.0,59234.0,0.0008998]
[1725127940921,1.86038902,59235.0,59234.0,0.0008998]
[1725127942018,1.88166263,59235.0,59234.0,0.0008998]
[1725127944303,1.34649431,59235.0,59234.0,0.0990998]
[1725127944506,0.2123067,59235.0,59234.0,0.0990998]
[1725127944735,0.66854848,59235.0,59234.0,0.0990998]
[1725127945331,0.33091048,59235.0,59234.0,0.0990998]
[1725127946179,0.42191048,59235.0,59234.0,0.0990998]
[1725127946310,0.3063067,59235.0,59234.0,0.0990998]
[1725127946905,0.2983067,59235.0,59234.0,0.0990998]
[1725127947121,0.3013067,59235.0,59234.0,0.0990998]
[1725127947761,0.274819,59235.0,59234.0,0.0990998]
[1725127949487,0.274819,59235.0,59234.0,0.2139998]
[1725127949488,0.106,59235.0,59234.0,0.2139998]
[1725127949705,0.006,59235.0,59234.0,0.2139998]
[1725127950957,0.03248608,59235.0,59234.0,0.2139998]
[1725127951625,0.03248608,59235.0,59234.0,0.3828208]
[1725127952231,0.02948608,59235.0,59234.0,0.3828208]
[1725127952649,0.03248608,59235.0,59234.0,0.3828208]
[1725127952918,0.02648608,59235.0,59234.0,0.3828208]
[1725127953132,0.02748608,59235.0,59234.0,0.3838208]
[1725127953770,0.03048608,59235.0,59234.0,0.3838208]
[1725127954240,0.02748608,59235.0,59234.0,0.3838208]
[1725127954459,0.02748608,59235.0,59234.0,0.7214638]
[1725127954673,0.02848608,59235.0,59234.0,0.7224638]
[1725127956587,0.02848608,59235.0,59234.0,0.7244638]
[1725127957640,0.002,59235.0,59234.0,0.7244638]
[1725127959259,0.002,59235.0,59234.0,0.7224638]
[1725127959526,0.002,59235.0,59234.0,1.0621068]
[1725127959733,0.002,59235.0,59234.0,1.3977498]
[1725127959935,0.002,59235.0,59234.0,1.3997498]
[1725127961828,0.002,59235.0,59234.0,1.5973491]
[1725127962693,0.002,59235.0,59234.0,1.5963491]
[1725127962913,0.000818,59237.0,59236.0,1.181712]
[1725127963125,0.000818,59237.0,59236.0,1.404612]
[1725127963358,0.000818,59237.0,59236.0,1.405612]
[1725127964187,0.001818,59237.0,59236.0,1.406612]
[1725127965461,0.002818,59237.0,59236.0,1.418612]
[1725127970204,0.002818,59237.0,59236.0,1.4195118]
[1725127977087,0.002818,59237.0,59236.0,1.4175118]
[1725127977300,0.002818,59237.0,59236.0,1.4195118]
[1725127977508,0.002818,59237.0,59236.0,1.0818798]
[1725127977717,0.002818,59237.0,59236.0,1.0798798]
[1725127980016,0.002818,59237.0,59236.0,1.0818798]
[1725127980366,0.002818,59237.0,59236.0,1.0798798]
[1725127980591,0.002818,59237.0,59236.0,0.7442478]
[1725127980787,0.002818,59237.0,59236.0,0.7422478]
[1725127980932,0.002818,59237.0,59236.0,0.6196478]
[1725127981198,0.62775926,59237.0,59236.0,0.0138998]
[1725127981995,0.509257,59237.0,59236.0,0.0138998]
[1725127982806,0.53574243,59237.0,59236.0,0.0138998]
[1725127983985,0.21758774,59237.0,59236.0,0.0138998]
[1725127984279,0.55521374,59237.0,59236.0,0.0138998]
[1725127985740,0.89283974,59237.0,59236.0,0.0138998]
[1725127987743,0.86635431,59237.0,59236.0,0.0138998]
[1725127990918,0.89284083,59237.0,59236.0,0.0138998]
[1725127991744,1.23046683,59237.0,59236.0,0.0138998]
[1725127993711,1.20398031,59237.0,59236.0,0.0128998]
[1725127993924,1.20498031,59237.0,59236.0,0.0078998]
[1725127994271,1.20498031,59237.0,59236.0,0.0088998]
[1725127994481,1.20579831,59237.0,59236.0,0.0008998]
[1725127994680,1.20579831,59237.0,59236.0,0.0028998]
[1725127995100,1.22559675,59237.0,59236.0,0.0028998]
[1725127995359,1.22559675,59237.0,59236.0,0.0048998]
[1725127997095,1.25208366,59237.0,59236.0,0.0048998]
[1725128000719,1.40488366,59237.0,59236.0,0.0048998]
[1725128001166,1.67414839,59237.0,59236.0,0.0048998]
[1725128001795,1.181733,59235.0,59234.0,0.0008998]
[1725128002004,1.91787326,59235.0,59234.0,0.0008998]
[1725128002903,1.92287326,59235.0,59234.0,0.0008998]
[1725128003117,1.93687326,59235.0,59234.0,0.0018998]
[1725128003358,2.06653004,59235.0,59234.0,0.0018998]
[1725128004255,1.94487326,59235.0,59234.0,0.0018998]
[1725128004489,1.95736475,59235.0,59234.0,0.0008998]
[1725128004714,1.96236475,59235.0,59234.0,0.0008998]
[1725128004944,1.98150058,59235.0,59234.0,0.0008998]
[1725128005195,1.99250058,59235.0,59234.0,0.0008998]
[1725128007868,1.96600909,59235.0,59234.0,0.0008998]
[1725128010197,1.84750683,59235.0,59234.0,0.0008998]
[1725128010475,1.96600909,59235.0,59234.0,0.0008998]
[1725128011173,1.99250083,59235.0,59234.0,0.0008998]
[1725128014446,1.98750083,59235.0,59234.0,0.0008998]
[1725128014653,1.99250083,59235.0,59234.0,0.0008998]
[1725128016959,2.01017776,59235.0,59234.0,0.0008998]
[1725128017854,1.98368602,59235.0,59234.0,0.0008998]
[1725128018300,2.04547138,59235.0,59234.0,0.0008998]
[1725128020987,2.0719631,59235.0,59234.0,0.0008998]
[1725128021925,2.0819631,59235.0,59234.0,0.0008998]
[1725128022829,2.1049631,59235.0,59234.0,0.0008998]
[1725128026241,2.04317774,59235.0,59234.0,0.0008998]
[1725128026470,1.34790165,59235.0,59234.0,0.0967998]
[1725128026707,0.91026365,59235.0,59234.0,0.0967998]
[1725128026949,0.866095,59235.0,59234.0,0.0967998]
[1725128027213,0.528457,59235.0,59234.0,0.0967998]
[1725128027456,0.506457,59235.0,59234.0,0.2167998]
[1725128027728,0.844095,59235.0,59234.0,0.2167998]
[1725128027934,0.854095,59235.0,59234.0,0.2167998]
[1725128028155,0.954095,59235.0,59234.0,0.2167998]
[1725128030336,0.98058304,59235.0,59234.0,0.2167998]
[1725128033125,0.954095,59235.0,59234.0,0.2167998]
[1725128036343,0.98058381,59235.0,59234.0,0.2167998]
[1725128037578,0.954095,59235.0,59234.0,0.2167998]
[1725128041001,0.785276,59235.0,59234.0,0.2167998]
[1725128041221,0.954095,59235.0,59234.0,0.2167998]
[1725128042552,1.31822162,59235.0,59234.0,0.2167998]
[1725128047767,1.291733,59235.0,59234.0,0.2167998]
[1725128049775,1.291733,59235.0,59234.0,0.0008998]
[1725128051187,1.31822157,59235.0,59234.0,0.0008998]
[1725128053869,1.31903957,59235.0,59234.0,0.0008998]
[1725128057413,1.65667757,59235.0,59234.0,0.0008998]
[1725128057622,1.31903957,59235.0,59234.0,0.0008998]
[1725128057832,1.292551,59235.0,59234.0,0.0008998]
[1725128058054,1.630189,59235.0,59234.0,0.0008998]
[1725128058736,1.292551,59235.0,59234.0,0.0008998]
[1725128059573,1.45240993,59235.0,59234.0,0.0008998]
[1725128059777,1.79004793,59235.0,59234.0,0.0008998]
[1725128060418,1.292551,59235.0,59234.0,0.0008998]
[1725128061101,1.65667877,59235.0,59234.0,0.0008998]
[1725128061811,1.31904077,59235.0,59234.0,0.0008998]
[1725128063705,1.65667877,59235.0,59234.0,0.0008998]
[1725128064142,1.31904077,59235.0,59234.0,0.0008998]
[1725128064352,1.65667877,59235.0,59234.0,0.0008998]
[1725128064771,1.31904077,59235.0,59234.0,0.0008998]
[1725128067749,1.292551,59235.0,59234.0,0.0008998]
[1725128068342,1.292551,59235.0,59234.0,0.1046998]
[1725128069843,1.41105326,59235.0,59234.0,0.1046998]
[1725128071132,1.43754256,59235.0,59234.0,0.1046998]
[1725128073927,1.41105326,59235.0,59234.0,0.1046998]
[1725128074808,1.292551,59235.0,59234.0,0.1046998]
[1725128075021,1.41105326,59235.0,59234.0,0.1046998]
[1725128076325,0.954913,59235.0,59234.0,0.2313998]
[1725128077409,1.07341526,59235.0,59234.0,0.2313998]
[1725128078046,1.54504619,59235.0,59234.0,0.0008998]
[1725128078259,1.43754106,59235.0,59234.0,0.0008998]
[1725128081012,1.41105326,59235.0,59234.0,0.0008998]
[1725128084167,1.43754321,59235.0,59234.0,0.0008998]
[1725128085812,1.43754321,59235.0,59234.0,0.1027998]
[1725128087870,1.41105326,59235.0,59234.0,0.1027998]
[1725128091159,1.4375431,59235.0,59234.0,0.1027998]
[1725128093783,1.41105326,59235.0,59234.0,0.1027998]
[1725128094964,0.73577726,59235.0,59234.0,0.2293998]
[1725128095208,0.73577726,59235.0,59234.0,0.2313998]
[1725128096377,0.010818,59235.0,59234.0,0.2313998]
[1725128096608,0.010818,59235.0,59234.0,0.2293998]
[1725128096848,0.010818,59235.0,59234.0,0.2313998]
[1725128097079,0.03730496,59235.0,59234.0,0.4002208]
[1725128097556,0.03730496,59235.0,59234.0,0.7378638]
[1725128097802,0.02730496,59235.0,59234.0,0.7378638]
[1725128098043,0.02730496,59235.0,59234.0,0.7388638]
[1725128098284,0.02730496,59235.0,59234.0,0.4002208]
[1725128098551,0.02830496,59235.0,59234.0,0.4012208]
[1725128098783,0.02830496,59235.0,59234.0,0.4002208]
[1725128099021,0.02830496,59235.0,59234.0,0.4012208]
[1725128099253,0.02930496,59235.0,59234.0,0.4022208]
[1725128099475,0.02930496,59235.0,59234.0,0.4012208]
[1725128099973,0.03030496,59235.0,59234.0,0.4032208]
[1725128100426,0.02999135,59235.0,59234.0,0.4032208]
[1725128100900,0.00350439,59235.0,59234.0,0.4032208]
[1725128101165,0.0110023,59235.0,59234.0,0.7408638]
[1725128101640,0.00350439,59235.0,59234.0,0.7408638]
[1725128101907,0.00350439,59235.0,59234.0,0.4032208]
[1725128102354,0.01100201,59235.0,59234.0,0.4032208]
[1725128102816,0.29832327,59235.0,59234.0,0.2323998]
[1725128103044,0.63596127,59235.0,59234.0,0.2323998]
[1725128104021,0.17982101,59235.0,59234.0,0.2323998]
[1725128104264,0.03748846,59235.0,59234.0,0.4012208]
[1725128104505,0.03748846,59235.0,59234.0,0.2323998]
[1725128104737,0.03748846,59235.0,59234.0,0.4032208]
[1725128105216,0.03748846,59235.0,59234.0,0.7408638]
[1725128105456,0.03748846,59235.0,59234.0,1.0785068]
[1725128105685,0.02999084,59235.0,59234.0,1.0785068]
[1725128106850,0.02899084,59235.0,59234.0,1.0765068]
[1725128107068,0.02699084,59235.0,59234.0,1.0755068]
[1725128107299,0.02799084,59235.0,59234.0,1.0765068]
[1725128107555,0.02799084,59235.0,59234.0,0.4012208]
[1725128107782,0.02799084,59235.0,59234.0,0.7398638]
[1725128107783,0.02899084,59235.0,59234.0,0.7398638]
[1725128108264,0.03649239,59235.0,59234.0,0.7398638]
[1725128108489,0.03549239,59235.0,59234.0,0.4012208]
[1725128108717,0.03549239,59235.0,59234.0,0.7388638]
[1725128108934,0.03649239,59235.0,59234.0,0.7398638]
[1725128109596,0.03649239,59235.0,59234.0,0.4022208]
[1725128110090,0.03549239,59235.0,59234.0,0.4012208]
[1725128110323,0.03649239,59235.0,59234.0,0.4022208]
[1725128110767,0.03549239,59235.0,59234.0,0.4012208]
[1725128111191,0.03649239,59235.0,59234.0,0.4022208]
[1725128111663,0.03649239,59235.0,59234.0,0.7398638]
[1725128112097,0.00250439,59235.0,59234.0,0.7398638]
[1725128112553,0.11850226,59244.0,59236.0,0.1267]
[1725128112788,0.50639,59243.0,59242.0,0.2292]
[1725128113000,0.843987,59243.0,59242.0,0.2292]
[1725128113434,0.843987,59243.0,59242.0,0.2272]
[1725128113874,0.843987,59243.0,59242.0,0.1005]
[1725128114082,0.843987,59243.0,59242.0,0.1015]
[1725128114717,0.843987,59243.0,59242.0,0.1025]
[1725128115377,0.87047282,59243.0,59242.0,0.1025]
[1725128116234,0.87047282,59243.0,59242.0,0.1045]
[1725128118429,0.87047282,59243.0,59242.0,0.1025]
[1725128119574,0.53287582,59243.0,59242.0,0.1045]
[1725128121097,0.50639,59243.0,59242.0,0.1045]
[1725128122214,0.50639,59243.0,59242.0,0.1025]
[1725128122436,0.507208,59243.0,59242.0,0.1025]
[1725128123308,0.507208,59243.0,59242.0,0.1045]
[1725128123536,0.169615,59243.0,59242.0,0.1045]
[1725128123760,0.000818,59243.0,59242.0,0.737497]
[1725128123997,0.000818,59243.0,59242.0,1.075095]
[1725128124220,0.000818,59243.0,59242.0,1.412693]
[1725128124732,0.000818,59243.0,59242.0,1.411693]
[1725128125213,0.000818,59243.0,59242.0,1.075095]
[1725128125471,0.000818,59243.0,59242.0,1.073095]
[1725128125741,0.001818,59243.0,59242.0,1.076095]
[1725128125946,0.001818,59243.0,59242.0,0.735497]
[1725128126397,0.002818,59243.0,59242.0,0.738497]
[1725128127108,0.002818,59243.0,59242.0,0.003]
[1725128127109,0.171614,59243.0,59242.0,0.003]
[1725128127360,0.846798,59243.0,59242.0,0.003]
[1725128127600,1.19290233,59243.0,59242.0,0.008]
[1725128128281,1.19290233,59243.0,59242.0,0.003]
[1725128128282,1.19090233,59243.0,59242.0,0.003]
[1725128128512,0.844022,59240.0,59239.0,0.0965]
[1725128128738,0.96252426,59240.0,59239.0,0.0965]
[1725128128959,0.97004814,59240.0,59239.0,0.0965]
[1725128131031,0.99653529,59240.0,59239.0,0.0965]
[1725128131725,0.99653529,59240.0,59239.0,0.1025]
[1725128131940,0.97004814,59240.0,59239.0,0.1025]
[1725128132322,0.97004814,59240.0,59239.0,0.0995]
[1725128132647,0.97004814,59240.0,59239.0,0.1025]
[1725128133778,0.97004814,59240.0,59239.0,0.1033998]
[1725128135333,0.99653529,59240.0,59239.0,0.1033998]
[1725128137656,0.97004814,59240.0,59239.0,0.1033998]
[1725128138142,1.30765714,59240.0,59239.0,0.0068998]
[1725128138360,1.36575714,59240.0,59239.0,0.0068998]
[1725128138842,1.46575714,59240.0,59239.0,0.0068998]
[1725128139538,1.46575714,59240.0,59239.0,0.0038998]
[1725128139758,1.46575714,59240.0,59239.0,0.0008998]
[1725128140216,1.46675714,59240.0,59239.0,0.0008998]
[1725128140949,1.80436614,59240.0,59239.0,0.0008998]
[1725128141203,1.80536614,59240.0,59239.0,0.0008998]
[1725128145388,1.97391778,59240.0,59239.0,0.0008998]
[1725128147444,2.00040747,59240.0,59239.0,0.0008998]
[1725128147728,1.97391778,59240.0,59239.0,0.0008998]
[1725128148656,2.09981778,59240.0,59239.0,0.0008998]
[1725128149831,2.46542678,59240.0,59239.0,0.0008998]
[1725128150543,2.46542678,59240.0,59234.0,0.0008998]
[1725128150544,1.84137326,59235.0,59234.0,0.0008998]
[1725128150796,1.15116726,59230.0,59229.0,0.008987]
[1725128151016,1.92649926,59230.0,59229.0,0.008987]
[1725128151270,1.93429045,59230.0,59229.0,0.008987]
[1725128151534,2.10284209,59230.0,59229.0,0.008987]
[1725128152940,1.62728819,59230.0,59229.0,0.008987]
[1725128153174,1.74579045,59230.0,59229.0,0.008987]
[1725128153829,1.75979045,59230.0,59229.0,0.008987]
[1725128154046,1.80028244,59230.0,59229.0,0.008987]
[1725128154309,1.78628244,59230.0,59229.0,0.008987]
[1725128154540,1.77228244,59230.0,59229.0,0.008987]
[1725128154771,1.78128244,59230.0,59229.0,0.008987]
[1725128155674,1.79128244,59230.0,59229.0,0.008987]
[1725128156364,1.95983408,59230.0,59229.0,0.008987]
[1725128156819,1.79128244,59230.0,59229.0,0.008987]
[1725128157270,1.45361644,59230.0,59229.0,0.008987]
[1725128161763,0.65978218,59230.0,59229.0,0.008987]
[1725128161996,1.11595044,59230.0,59229.0,0.008987]
[1725128165948,1.45361644,59230.0,59229.0,0.008987]
[1725128166171,1.70774146,59230.0,59229.0,0.008987]
[1725128167749,1.68124947,59230.0,59229.0,0.008987]
[1725128168421,1.7604825,59230.0,59229.0,0.008987]
[1725128168842,2.0981485,59230.0,59229.0,0.008987]
[1725128170395,1.7604825,59230.0,59229.0,0.008987]
[1725128170613,1.6978825,59230.0,59229.0,0.008987]
[1725128170828,1.86702348,59230.0,59229.0,0.008987]
[1725128171072,1.89351561,59230.0,59229.0,0.008987]
[1725128171953,1.89851561,59230.0,59229.0,0.008987]
[1725128172611,1.78001229,59223.0,59222.0,0.008987]
[1725128172829,1.88001229,59223.0,59222.0,0.008987]
[1725128173037,1.8877509,59223.0,59222.0,0.008987]
[1725128173249,1.9257509,59223.0,59222.0,0.008987]
[1725128173459,2.0776471,59223.0,59222.0,0.008987]
[1725128173667,2.58390474,59223.0,59222.0,0.008987]
[1725128174088,2.55740854,59223.0,59222.0,0.008987]
[1725128174312,1.534731,59221.0,59220.0,0.008987]
[1725128174538,1.657731,59221.0,59220.0,0.008987]
[1725128174745,1.82628264,59221.0,59220.0,0.008987]
[1725128175165,1.83404568,59221.0,59220.0,0.008987]
[1725128175597,1.53478,59219.0,59218.0,0.0008998]
[1725128175831,1.53478,59219.0,59216.0,0.0008998]
[1725128175832,0.38160229,59218.0,59216.0,0.0008998]
[1725128176089,1.31427915,59218.0,59216.0,0.0008998]
[1725128176317,1.9975122,59218.0,59216.0,0.0008998]
[1725128176545,2.1229122,59218.0,59216.0,0.0008998]
[1725128177216,1.53483,59217.0,59216.0,0.0008998]
[1725128177478,1.82638164,59217.0,59216.0,0.0008998]
[1725128177710,1.89674335,59217.0,59216.0,0.0008998]
[1725128179046,2.24848335,59217.0,59216.0,0.0008998]
[1725128179273,0.54237171,59217.0,59216.0,0.0966998]
[1725128179497,0.52837171,59217.0,59216.0,0.2247998]
[1725128180016,0.53461,59217.0,59216.0,0.2247998]
[1725128180239,0.87235,59217.0,59216.0,0.2247998]
[1725128180454,0.84435,59217.0,59216.0,0.2247998]
[1725128180675,0.50661,59217.0,59216.0,0.2247998]
[1725128180893,0.51961,59217.0,59216.0,0.2247998]
[1725128181119,0.85735,59217.0,59216.0,0.2247998]
[1725128181358,0.95735,59217.0,59216.0,0.2247998]
[1725128181789,0.97135,59217.0,59216.0,0.2247998]
[1725128182007,0.94435,59217.0,59216.0,0.2247998]
[1725128182444,0.94835,59217.0,59216.0,0.2247998]
[1725128182676,0.94535,59217.0,59216.0,0.2247998]
[1725128182900,0.94435,59217.0,59216.0,0.2247998]
[1725128183127,0.95235,59217.0,59216.0,0.2247998]
[1725128183357,0.97884678,59217.0,59216.0,0.2247998]
[1725128183581,0.97784678,59217.0,59216.0,0.2247998]
[1725128184074,0.98084678,59217.0,59216.0,0.2247998]
[1725128186888,0.64310678,59217.0,59216.0,0.2247998]
[1725128187107,0.64010678,59217.0,59216.0,0.2247998]
[1725128187781,0.60961,59217.0,59216.0,0.2247998]
[1725128187994,0.60661,59217.0,59216.0,0.2247998]
[1725128188203,0.60861,59217.0,59216.0,0.2247998]
[1725128188829,0.60761,59217.0,59216.0,0.2247998]
[1725128189304,0.60861,59217.0,59216.0,0.2247998]
[1725128191037,0.97284671,59217.0,59216.0,0.2247998]
[1725128191258,1.12367711,59217.0,59216.0,0.2247998]
[1725128191470,1.12367711,59217.0,59216.0,0.0008998]
[1725128191687,1.46141711,59217.0,59216.0,0.0008998]
[1725128192323,1.46041711,59217.0,59216.0,0.0008998]
[1725128192535,1.46241711,59217.0,59216.0,0.0008998]
[1725128192967,1.45941711,59217.0,59216.0,0.0008998]
[1725128193402,1.46741711,59217.0,59216.0,0.0008998]
[1725128194563,1.49541711,59217.0,59216.0,0.0008998]
[1725128195241,1.49041711,59217.0,59216.0,0.0008998]
[1725128195464,1.3614146,59217.0,59216.0,0.0008998]
[1725128196665,1.3384146,59217.0,59216.0,0.0008998]
[1725128196822,1.31658671,59217.0,59216.0,0.0008998]
[1725128197677,1.29009,59217.0,59216.0,0.0008998]
[1725128200011,1.29009,59217.0,59216.0,0.2222998]
[1725128200233,0.61461,59217.0,59216.0,0.2222998]
[1725128201136,0.63310667,59217.0,59216.0,0.2222998]
[1725128201585,0.63910667,59217.0,59216.0,0.2222998]
[1725128205311,0.63992567,59217.0,59216.0,0.2222998]
[1725128205767,0.97766567,59217.0,59216.0,0.2222998]
[1725128205980,0.63992567,59217.0,59216.0,0.2222998]
[1725128207061,0.97766567,59217.0,59216.0,0.2222998]
[1725128207702,0.951169,59217.0,59216.0,0.2222998]
[1725128212605,0.951169,59217.0,59216.0,0.0008998]
[1725128212606,1.43765343,59217.0,59216.0,0.0008998]
[1725128213089,1.46065343,59217.0,59216.0,0.0008998]
[1725128214043,1.79839343,59217.0,59216.0,0.0008998]
[1725128214526,1.46065343,59217.0,59216.0,0.0008998]
[1725128214740,1.48715167,59217.0,59216.0,0.0008998]
[1725128215852,1.82489167,59217.0,59216.0,0.0008998]
[1725128216072,1.48715167,59217.0,59216.0,0.0008998]
[1725128216508,1.02899553,59217.0,59216.0,0.0008998]
[1725128217580,1.36673553,59217.0,59216.0,0.0008998]
[1725128217800,1.34023729,59217.0,59216.0,0.0008998]
[1725128220462,1.45892802,59217.0,59216.0,0.0008998]
[1725128221114,1.82316663,59217.0,59216.0,0.0008998]
[1725128221327,1.48542663,59217.0,59216.0,0.0008998]
[1725128222195,1.53506468,59217.0,59216.0,0.0008998]
[1725128222458,1.48542663,59217.0,59216.0,0.0977998]